fUST/lending_fUST_20250707
["ID","MTS","AMOUNT","RATE_DAILY","PERIOD"]
[370024129,1751838648040,-500.0,0.00019343,2]
[370024130,1751838648049,-198.0,0.00019343,2]
[370024131,1751838648059,-198.0,0.00019343,2]
[370024132,1751838648068,-198.0,0.00019343,2]
[370024133,1751838648077,-198.0,0.00019343,2]
[370024134,1751838648087,-198.0,0.00019343,2]
[370024135,1751838648097,-198.0,0.00019343,2]
[370024136,1751838648107,-198.0,0.00019343,2]
[370024137,1751838648117,-198.0,0.00019343,2]
[370024138,1751838648127,-198.0,0.00019343,2]
[370024139,1751838648136,-151.0,0.0001937,2]
[370024140,1751838648146,-151.0,0.0001937,2]
[370024141,1751838648155,-500.0,0.0001937,2]
[370024142,1751838648165,-500.7871241,0.00019373,2]
[370024143,1751838648175,-500.0,0.00019373,2]
[370024144,1751838648184,-500.0,0.00019373,2]
[370024145,1751838648194,-600.0,0.00019373,2]
[370024146,1751838648204,-407.70096075,0.00019373,2]
[370024147,1751838648214,-502.66644241,0.00019373,2]
[370024148,1751838648224,-500.0,0.00019373,2]
[370024149,1751838648234,-500.40488688,0.00019373,2]
[370024150,1751838648243,-500.0,0.00019373,2]
[370024151,1751838648253,-160.19171691,0.00019373,2]
[370024152,1751838648262,-500.0,0.00019373,2]
[370024153,1751838648272,-500.0,0.00019373,2]
[370024154,1751838648281,-500.682805,0.00019373,2]
[370024155,1751838648291,-617.26409381,0.00019373,2]
[370024156,1751838648300,-500.0,0.00019373,2]
[370024157,1751838648310,-5000.0,0.00019383,2]
[370024158,1751838648319,-500.0,0.00019385,2]
[370024159,1751838648329,-199.04138386,0.00019398,2]
[370024160,1751838648338,-151.0,0.00019398,2]
[370024161,1751838648348,-500.0,0.00019398,2]
[370024162,1751838648358,-245.0,0.00019425,2]
[370024163,1751838648367,-500.0,0.00019425,2]
[370024164,1751838648377,-500.0,0.00019452,2]
[370024165,1751838648386,-500.0,0.00019468,2]
[370024166,1751838648396,-500.0,0.0001948,2]
[370024167,1751838648406,-562.0,0.00019507,2]
[370024168,1751838648415,-967.0,0.00019543,2]
[370024169,1751838648424,-646.0,0.00019543,2]
[370024170,1751838648433,-2152.0,0.00019543,2]
[370024171,1751838648443,-500.0,0.00019551,2]
[370024172,1751838648454,-7539.18679468,0.00019555,2]
[370024173,1751838648463,-885.3,0.00019572,2]
[370024174,1751838648473,-460.0,0.00019574,2]
[370024175,1751838648483,-616.81,0.00019574,2]
[370024176,1751838648492,-742.75,0.00019574,2]
[370024177,1751838648537,-662.95,0.00019574,2]
[370024178,1751838648547,-530.35,0.00019574,2]
[370024179,1751838648556,-858.64,0.00019574,2]
[370024180,1751838648565,-949.25,0.00019574,2]
[370024181,1751838648574,-771.88,0.00019574,2]
[370024182,1751838648584,-627.58,0.00019574,2]
[370024183,1751838648593,-460.0,0.00019574,2]
[370024184,1751838648602,-688.49,0.00019574,2]
[370024185,1751838648612,-460.0,0.00019575,2]
[370024186,1751838648622,-460.0,0.00019575,2]
[370024187,1751838648631,-1428.84,0.00019575,2]
[370024188,1751838648641,-460.0,0.00019575,2]
[370024189,1751838648650,-460.0,0.00019575,2]
[370024190,1751838648659,-579.67,0.00019575,2]
[370024191,1751838648668,-460.0,0.00019575,2]
[370024192,1751838648678,-937.96,0.00019577,2]
[370024193,1751838648687,-460.0,0.00019577,2]
[370024194,1751838648696,-734.02,0.00019577,2]
[370024195,1751838648705,-1899.82,0.00019577,2]
[370024196,1751838648715,-558.05,0.00019577,2]
[370024197,1751838648724,-4110.20679834,0.00019593,2]
[370024198,1751838648734,-500.0,0.00019635,2]
[370024199,1751838648742,-2511.99532331,0.00019651,2]
[370024200,1751838648751,-215.0738,0.00019656,2]
[370024201,1751838648760,-500.0,0.00019675,2]
[370024202,1751838648769,-501.2801372,0.00019675,2]
[370024203,1751838648779,-258.68066511,0.00019675,2]
[370024204,1751838648787,-500.76977867,0.00019675,2]
[370024205,1751838648797,-500.0,0.00019718,2]
[370024206,1751838648806,-500.98945889,0.00019793,2]
[370024207,1751838648818,-500.82461005,0.00019793,2]
[370024208,1751838648827,-500.0,0.00019801,2]
[370024209,1751838648837,-500.37666344,0.00019822,2]
[370024210,1751838648846,-500.0,0.00019822,2]
[370024211,1751838648855,-501.94181185,0.00019822,2]
[370024212,1751838648865,-500.0,0.00019822,2]
[370024213,1751838648875,-264.31899327,0.00019822,2]
[370024214,1751838648884,-160.19171553,0.00019822,2]
[370024215,1751838648894,-151.0,0.00019831,2]
[370024216,1751838648904,-151.0,0.00019831,2]
[370024217,1751838648913,-151.0,0.00019831,2]
[370024218,1751838648922,-281.676206,0.00019831,2]
[370024219,1751838648931,-151.0,0.00019831,2]
[370024220,1751838648942,-7539.18679468,0.00019831,2]
[370024221,1751838648951,-885.3,0.00019846,2]
[370024222,1751838648961,-460.0,0.00019848,2]
[370024223,1751838648971,-616.81,0.00019848,2]
[370024224,1751838648981,-742.75,0.00019848,2]
[370024225,1751838648991,-662.95,0.00019848,2]
[370024226,1751838649000,-530.35,0.00019848,2]
[370024227,1751838649010,-858.64,0.00019848,2]
[370024228,1751838649020,-949.25,0.00019848,2]
[370024229,1751838649029,-771.88,0.00019848,2]
[370024230,1751838649039,-627.58,0.00019848,2]
[370024231,1751838649049,-482.63728264,0.00019848,2]
[370024232,1751838649058,-688.49,0.00019848,2]
[370024233,1751838649067,-288.17526949,0.00019849,2]
[370024234,1751838649077,-460.0,0.00019849,2]
[370024235,1751838649085,-1428.84,0.00019849,2]
[370024236,1751838649095,-460.0,0.00019849,2]
[370024237,1751838649104,-460.0,0.00019849,2]
[370024238,1751838649114,-460.0,0.00019849,2]
[370024239,1751838649123,-937.96,0.00019851,2]
[370024240,1751838649132,-460.0,0.00019851,2]
[370024241,1751838649142,-734.02,0.00019851,2]
[370024242,1751838649152,-1899.82,0.00019851,2]
[370024243,1751838649162,-558.05,0.00019851,2]
[370024244,1751838649172,-150.54157,0.0001992,3]
[370024245,1751838649183,-1001.59291249,0.00019921,2]
[370024246,1751838649193,-1000.0,0.00019921,2]
[370024247,1751838649203,-1200.0,0.00019921,2]
[370024248,1751838649213,-1001.13926414,0.00019921,2]
[370024249,1751838649223,-1000.95657179,0.00019921,2]
[370024250,1751838649232,-1000.0,0.00019921,2]
[370024251,1751838649241,-1000.0,0.00019921,2]
[370024252,1751838649251,-500.6887514,0.00019921,2]
[370024253,1751838649260,-151.0,0.00019921,2]
[370024254,1751838649270,-151.0,0.00019921,2]
[370024255,1751838649280,-151.0,0.00019921,2]
[370024256,1751838649289,-500.0,0.0001993,2]
[370024257,1751838649299,-5000.0,0.00019931,2]
[370024258,1751838649308,-151.0,0.00019931,2]
[370024259,1751838649317,-296.56939,0.00019931,2]
[370024260,1751838649326,-151.0,0.00019931,2]
[370024261,1751838649336,-171.551681,0.00019931,2]
[370024262,1751838649345,-171.551681,0.00019931,2]
[370024263,1751838649355,-151.0,0.00019931,2]
[370024264,1751838649364,-155.954551,0.00019931,2]
[370024265,1751838649374,-155.954551,0.00019931,2]
[370024266,1751838649383,-234.314514,0.00019931,2]
[370024267,1751838649394,-234.314514,0.00019931,2]
[370024268,1751838649405,-300.36645618,0.0002,2]
[370024269,1751838649416,-706.665,0.0002,2]
[370024270,1751838649428,-151.0,0.00020042,3]
[370024271,1751838649438,-587.0,0.00020085,2]
[370024272,1751838649448,-720.0,0.00020086,2]
[370024273,1751838649458,-7539.18679468,0.00020107,2]
[370024274,1751838649467,-885.3,0.0002012,2]
[370024275,1751838649477,-460.0,0.00020122,2]
[370024276,1751838649487,-616.81,0.00020122,2]
[370024277,1751838649496,-742.75,0.00020122,2]
[370024278,1751838649506,-662.95,0.00020122,2]
[370024279,1751838649515,-530.35,0.00020122,2]
[370024280,1751838649525,-858.64,0.00020122,2]
[370024281,1751838649535,-949.25,0.00020122,2]
[370024282,1751838649545,-771.88,0.00020122,2]
[370024283,1751838649557,-627.58,0.00020122,2]
[370024284,1751838649568,-688.49,0.00020122,2]
[370024285,1751838649578,-460.0,0.00020123,2]
[370024286,1751838649591,-1428.84,0.00020123,2]
[370024287,1751838649601,-460.0,0.00020123,2]
[370024288,1751838649611,-460.0,0.00020123,2]
[370024289,1751838649622,-937.96,0.00020125,2]
[370024290,1751838649632,-462.17784624,0.00020125,2]
[370024291,1751838649641,-734.02,0.00020125,2]
[370024292,1751838649651,-1899.82,0.00020125,2]
[370024293,1751838649662,-558.05,0.00020125,2]
[370024294,1751838649672,-659.356572,0.00020187,2]
[370024295,1751838649682,-1000.0,0.00020223,2]
[370024296,1751838649692,-150.54157,0.0002024,2]
[370024297,1751838649702,-500.44110298,0.00020293,2]
[370024298,1751838649711,-641.0,0.000203,2]
[370024299,1751838649721,-500.72075072,0.0002037,2]
[370024300,1751838649730,-1000.0,0.0002037,2]
[370024301,1751838649739,-7539.18679468,0.00020383,3]
[370024302,1751838649749,-885.3,0.00020393,2]
[370024303,1751838649759,-150.54157,0.00020395,4]
[370024304,1751838649769,-460.0,0.00020396,2]
[370024305,1751838649779,-616.81,0.00020396,2]
[370024306,1751838649788,-742.75,0.00020396,2]
[370024307,1751838649798,-662.95,0.00020396,2]
[370024308,1751838649808,-530.35,0.00020396,2]
[370024309,1751838649823,-858.64,0.00020396,2]
[370024310,1751838649833,-949.25,0.00020396,2]
[370024311,1751838649844,-771.88,0.00020396,2]
[370024312,1751838649855,-627.58,0.00020396,2]
[370024313,1751838649868,-688.49,0.00020396,2]
[370024314,1751838649882,-535.89446292,0.00020397,2]
[370024315,1751838649894,-1428.84,0.00020397,2]
[370024316,1751838649907,-460.0,0.00020397,2]
[370024317,1751838649917,-460.0,0.00020397,2]
[370024318,1751838649929,-937.96,0.00020399,2]
[370024319,1751838649938,-734.02,0.00020399,2]
[370024320,1751838649949,-156.025511,0.00020399,2]
[370024321,1751838649959,-151.0,0.00020399,2]
[370024322,1751838649969,-151.0,0.00020399,2]
[370024323,1751838649980,-1899.82,0.00020399,2]
[370024324,1751838649990,-383.134706,0.00020399,2]
[370024325,1751838650000,-383.134706,0.00020399,2]
[370024326,1751838650010,-288.147002,0.00020399,2]
[370024327,1751838650020,-288.147002,0.00020399,2]
[370024328,1751838650030,-558.05,0.00020399,2]
[370024329,1751838650040,-500.74772515,0.00020468,2]
[370024330,1751838650049,-1800.0,0.00020468,2]
[370024331,1751838650058,-5000.0,0.00020479,2]
[370024332,1751838650067,-200.0,0.0002049,2]
[370024333,1751838650078,-151.0,0.00020527,4]
[370024334,1751838650089,-150.0,0.00020561,2]
[370024335,1751838650099,-7539.18679468,0.00020659,3]
[370024336,1751838650110,-885.3,0.00020667,2]
[370024337,1751838650119,-460.0,0.0002067,2]
[370024338,1751838650128,-616.81,0.0002067,2]
[370024339,1751838650138,-742.75,0.0002067,2]
[370024340,1751838650148,-662.95,0.0002067,2]
[370024341,1751838650158,-530.35,0.0002067,2]
[370024342,1751838650167,-858.64,0.0002067,2]
[370024343,1751838650177,-949.25,0.0002067,2]
[370024344,1751838650186,-771.88,0.0002067,2]
[370024345,1751838650197,-627.58,0.0002067,2]
[370024346,1751838650207,-688.49,0.0002067,2]
[370024347,1751838650216,-1428.84,0.00020671,2]
[370024348,1751838650226,-460.0,0.00020671,2]
[370024349,1751838650236,-460.0,0.00020671,2]
[370024350,1751838650246,-937.96,0.00020673,2]
[370024351,1751838650256,-734.02,0.00020673,2]
[370024352,1751838650267,-1899.82,0.00020673,2]
[370024353,1751838650276,-558.05,0.00020673,2]
[370024354,1751838650286,-151.0,0.00020696,2]
[370024355,1751838650296,-151.0,0.00020696,2]
[370024356,1751838650306,-151.0,0.00020696,2]
[370024357,1751838650315,-151.0,0.00020696,2]
[370024358,1751838650326,-151.0,0.00020696,2]
[370024359,1751838650335,-151.0,0.00020696,2]
[370024360,1751838650346,-151.0,0.00020696,2]
[370024361,1751838650355,-848.15551661,0.000207,3]
[370024362,1751838650366,-160.0,0.000207,3]
[370024363,1751838650377,-214.03875559,0.000207,3]
[370024364,1751838650387,-12582.33653824,0.000207,3]
[370024365,1751838650397,-4110.20679834,0.00020746,2]
[370024366,1751838650407,-151.0,0.00020765,2]
[370024367,1751838650417,-151.0,0.00020765,2]
[370024368,1751838650427,-151.0,0.00020765,2]
[370024369,1751838650437,-151.0,0.00020765,2]
[370024370,1751838650448,-151.0,0.00020765,2]
[370024371,1751838650457,-151.0,0.00020765,2]
[370024372,1751838650468,-151.0,0.00020765,2]
[370024373,1751838650480,-230.0,0.00020771,2]
[370024374,1751838650490,-2173.26060421,0.00020821,2]
[370024375,1751838650502,-151.0,0.00020821,2]
[370024376,1751838650512,-151.0,0.00020821,2]
[370024377,1751838650523,-168.0,0.00020843,2]
[370024378,1751838650534,-168.0,0.00020894,2]
[370024379,1751838650544,-151.0,0.000209,4]
[370024380,1751838650555,-7539.18679468,0.00020934,4]
[370024381,1751838650566,-885.3,0.00020941,2]
[370024382,1751838650577,-286.04321191,0.00020944,2]
[370024383,1751838650587,-616.81,0.00020944,2]
[370024384,1751838650596,-742.75,0.00020944,2]
[370024385,1751838650606,-662.95,0.00020944,2]
[370024386,1751838650616,-530.35,0.00020944,2]
[370024387,1751838650626,-454.39445389,0.00020944,2]
[370024388,1751838650738,-404.24554611,0.00020944,2]
[370024389,1751838650749,-949.25,0.00020944,2]
[370024390,1751838650759,-771.88,0.00020944,2]
[370024391,1751838650768,-627.58,0.00020944,2]
[370024392,1751838650778,-688.49,0.00020944,2]
[370024393,1751838650788,-1428.84,0.00020945,2]
[370024394,1751838650797,-460.0,0.00020945,2]
[370024395,1751838650807,-460.0,0.00020945,2]
[370024396,1751838650820,-937.96,0.00020947,2]
[370024397,1751838650830,-734.02,0.00020947,2]
[370024398,1751838650840,-1899.82,0.00020947,2]
[370024399,1751838650852,-558.05,0.00020947,2]
[370024400,1751838650862,-168.0,0.00020958,2]
[370024401,1751838650871,-168.0,0.0002096,2]
[370024402,1751838650881,-168.0,0.00020964,2]
[370024403,1751838650891,-2173.26060421,0.00020981,2]
[370024404,1751838650903,-151.0,0.00021013,4]
[370024405,1751838650913,-2400.0,0.00021016,2]
[370024406,1751838650923,-223.0315306,0.00021025,2]
[370024407,1751838650932,-5000.0,0.00021027,2]
[370024408,1751838650942,-151.0,0.00021027,2]
[370024409,1751838650952,-151.0,0.00021027,2]
[370024410,1751838650962,-151.0,0.00021027,2]
[370024411,1751838650971,-151.0,0.00021027,2]
[370024412,1751838650982,-179.78425889,0.00021072,2]
[370024413,1751838650991,-2398.617872,0.00021142,4]
[370024414,1751838651001,-151.266482,0.00021142,2]
[370024415,1751838651012,-153.720813,0.00021142,2]
[370024416,1751838651022,-153.720813,0.00021142,2]
[370024417,1751838651032,-230.0,0.00021198,2]
[370024418,1751838651043,-7539.18679468,0.0002121,4]
[370024419,1751838651052,-885.3,0.00021215,2]
[370024420,1751838651062,-616.81,0.00021218,2]
[370024421,1751838651072,-742.75,0.00021218,2]
[370024422,1751838651082,-662.95,0.00021218,2]
[370024423,1751838651092,-530.35,0.00021218,2]
[370024424,1751838651101,-858.64,0.00021218,2]
[370024425,1751838651111,-949.25,0.00021218,2]
[370024426,1751838651121,-771.88,0.00021218,2]
[370024427,1751838651131,-627.58,0.00021218,2]
[370024428,1751838651141,-688.49,0.00021218,2]
[370024429,1751838651151,-1428.84,0.00021219,2]
[370024430,1751838651161,-460.0,0.00021219,2]
[370024431,1751838651170,-460.0,0.00021219,2]
[370024432,1751838651180,-937.96,0.00021221,2]
[370024433,1751838651190,-734.02,0.00021221,2]
[370024434,1751838651200,-1899.82,0.00021221,2]
[370024435,1751838651210,-151.0,0.00021221,2]
[370024436,1751838651220,-151.0,0.00021221,2]
[370024437,1751838651230,-151.0,0.00021221,2]
[370024438,1751838651239,-558.05,0.00021221,2]
[370024439,1751838651250,-171.551681,0.00021222,2]
[370024440,1751838651260,-171.551681,0.00021222,2]
[370024441,1751838651269,-151.0,0.00021222,2]
[370024442,1751838651279,-155.954551,0.00021222,2]
[370024443,1751838651293,-155.954551,0.00021222,2]
[370024444,1751838651303,-234.314514,0.00021222,2]
[370024445,1751838651313,-234.314514,0.00021222,2]
[370024446,1751838651323,-2173.26060421,0.00021337,2]
[370024447,1751838651333,-150.0,0.000214,5]
[370024448,1751838651343,-168.0,0.00021449,2]
[370024449,1751838651353,-230.0,0.00021456,2]
[370024450,1751838651362,-150.4247,0.00021466,2]
[370024451,1751838651373,-7539.18679468,0.00021486,5]
[370024452,1751838651382,-885.3,0.00021489,2]
[370024453,1751838651392,-616.81,0.00021492,2]
[370024454,1751838651402,-742.75,0.00021492,2]
[370024455,1751838651412,-662.95,0.00021492,2]
[370024456,1751838651422,-530.35,0.00021492,2]
[370024457,1751838651433,-858.64,0.00021492,2]
[370024458,1751838651444,-949.25,0.00021492,2]
[370024459,1751838651454,-771.88,0.00021492,2]
[370024460,1751838651464,-627.58,0.00021492,2]
[370024461,1751838651474,-688.49,0.00021492,2]
[370024462,1751838651484,-1428.84,0.00021493,2]
[370024463,1751838651495,-460.0,0.00021493,2]
[370024464,1751838651505,-460.0,0.00021493,2]
[370024465,1751838651515,-937.96,0.00021495,2]
[370024466,1751838651652,-734.02,0.00021495,2]
[370024467,1751838651663,-1899.82,0.00021495,2]
[370024468,1751838651673,-558.05,0.00021495,2]
[370024469,1751838651683,-151.0,0.00021499,4]
[370024470,1751838651693,-2000.0,0.000215,2]
[370024471,1751838651702,-168.0,0.00021556,2]
[370024472,1751838651712,-3000.0,0.00021564,2]
[370024473,1751838651721,-157.0,0.00021574,2]
[370024474,1751838651730,-157.0,0.00021574,2]
[370024475,1751838651740,-157.0,0.00021574,2]
[370024476,1751838651749,-156.64133658,0.00021574,2]
[370024477,1751838651759,-201.36364733,0.00021574,2]
[370024478,1751838651769,-318.0,0.00021574,2]
[370024479,1751838651778,-318.0,0.00021574,2]
[370024480,1751838651788,-318.0,0.00021574,2]
[370024481,1751838651797,-318.0,0.00021574,2]
[370024482,1751838651807,-273.59770201,0.00021574,2]
[370024483,1751838651821,-157.08101915,0.00021574,2]
[370024484,1751838651832,-5000.0,0.00021575,2]
[370024485,1751838651841,-1389.75,0.000216,2]
[370024486,1751838651850,-320.5,0.000216,2]
[370024487,1751838651861,-320.5,0.000216,2]
[370024488,1751838651870,-305557.97775,0.00021646,2]
[370024489,1751838651880,-550.0,0.00021714,2]
[370024490,1751838651889,-230.0,0.00021735,2]
[370024491,1751838651899,-7539.18679468,0.00021762,5]
[370024492,1751838651908,-885.3,0.00021763,2]
[370024493,1751838651918,-616.81,0.00021766,2]
[370024494,1751838651927,-742.75,0.00021766,2]
[370024495,1751838651937,-662.95,0.00021766,2]
[370024496,1751838651947,-530.35,0.00021766,2]
[370024497,1751838651957,-858.64,0.00021766,2]
[370024498,1751838651966,-949.25,0.00021766,2]
[370024499,1751838651976,-771.88,0.00021766,2]
[370024500,1751838651985,-627.58,0.00021766,2]
[370024501,1751838651995,-688.49,0.00021766,2]
[370024502,1751838652005,-1428.84,0.00021767,2]
[370024503,1751838652015,-460.0,0.00021767,2]
[370024504,1751838652025,-460.0,0.00021767,2]
[370024505,1751838652035,-937.96,0.00021769,2]
[370024506,1751838652046,-734.02,0.00021769,2]
[370024507,1751838652056,-1899.82,0.00021769,2]
[370024508,1751838652065,-558.05,0.00021769,2]
[370024509,1751838652075,-2600.73563526,0.0002178,2]
[370024510,1751838652085,-2200.0,0.00021797,2]
[370024511,1751838652094,-802.341,0.00021797,2]
[370024512,1751838652104,-1728.30115908,0.000218,3]
[370024513,1751838652113,-230.0,0.00021808,2]
[370024514,1751838652123,-168.0,0.00021838,2]
[370024515,1751838652132,-4110.20679834,0.000219,2]
[370024516,1751838652142,-151.0,0.00021918,2]
[370024517,1751838652151,-151.69142136,0.00021918,2]
[370024518,1751838652161,-208.0,0.0002192,4]
[370024519,1751838652171,-823.0,0.00021941,2]
[370024520,1751838652180,-150.0,0.00021973,2]
[370024521,1751838652190,-150.0,0.00021973,2]
[370024522,1751838652200,-151.0,0.00021985,5]
[370024523,1751838652210,-503.69375874,0.00021999,10]
[370024524,1751838652220,-4104.71080996,0.00022,2]
[370024525,1751838652229,-7279.42,0.00022,7]
[370024526,1751838652239,-88925.38,0.00022,7]
[370024527,1751838652248,-128762.83,0.00022,2]
[370024528,1751838652258,-151.0,0.00022,7]
[370024529,1751838652268,-151.0,0.00022,7]
[370024530,1751838652278,-151.0,0.00022,7]
[370024531,1751838652287,-151.0,0.00022,7]
[370024532,1751838652297,-151.0,0.00022,7]
[370024533,1751838652307,-210.639129,0.00022,7]
[370024534,1751838652316,-151.0,0.00022,7]
[370024535,1751838652326,-210.639129,0.00022,7]
[370024536,1751838652335,-151.0,0.00022,7]
[370024537,1751838652345,-151.0,0.00022,7]
[370024538,1751838652355,-151.0,0.00022,7]
[370024539,1751838652364,-151.0,0.00022,7]
[370024540,1751838652373,-151.0,0.00022,7]
[370024541,1751838652383,-151.0,0.00022,7]
[370024542,1751838652392,-151.0,0.00022,7]
[370024543,1751838652401,-151.0,0.00022,7]
[370024544,1751838652411,-151.0,0.00022,7]
[370024545,1751838652421,-151.0,0.00022,7]
[370024546,1751838652430,-151.0,0.00022,7]
[370024547,1751838652440,-151.0,0.00022,7]
[370024548,1751838652450,-151.0,0.00022,3]
[370024549,1751838652460,-151.0,0.00022,2]
[370024550,1751838652470,-151.0,0.00022,7]
[370024551,1751838652480,-151.0,0.00022,2]
[370024552,1751838652489,-151.0,0.00022,7]
[370024553,1751838652499,-151.0,0.00022,7]
[370024554,1751838652508,-153.720813,0.00022,7]
[370024555,1751838652517,-153.720813,0.00022,7]
[370024556,1751838652527,-171.551681,0.00022,7]
[370024557,1751838652536,-171.551681,0.00022,7]
[370024558,1751838652546,-151.0,0.00022,7]
[370024559,1751838652556,-848.15551661,0.00022,7]
[370024560,1751838652565,-151.0,0.00022,7]
[370024561,1751838652575,-151.0,0.00022,7]
[370024562,1751838652585,-155.954551,0.00022,7]
[370024563,1751838652595,-155.954551,0.00022,7]
[370024564,1751838652604,-160.0,0.00022,7]
[370024565,1751838652615,-151.0,0.00022,7]
[370024566,1751838652624,-383.134706,0.00022,7]
[370024567,1751838652634,-234.314514,0.00022,7]
[370024568,1751838652644,-383.134706,0.00022,7]
[370024569,1751838652654,-234.314514,0.00022,7]
[370024570,1751838652663,-288.147002,0.00022,7]
[370024571,1751838652672,-151.0,0.00022,7]
[370024572,1751838652682,-288.147002,0.00022,7]
[370024573,1751838652692,-191.575484,0.00022,7]
[370024574,1751838652702,-151.0,0.00022,7]
[370024575,1751838652712,-151.0,0.00022,7]
[370024576,1751838652722,-214.03875559,0.00022,7]
[370024577,1751838652731,-151.0,0.00022,7]
[370024578,1751838652740,-12582.33653824,0.00022,7]
[370024579,1751838652750,-151.0,0.00022,7]
[370024580,1751838652760,-151.0,0.00022,7]
[370024581,1751838652769,-287.738569,0.00022,7]
[370024582,1751838652781,-230.0,0.00022003,2]
[370024583,1751838652791,-885.3,0.00022037,2]
[370024584,1751838652801,-7539.18679468,0.00022038,6]
[370024585,1751838652811,-616.81,0.0002204,2]
[370024586,1751838652827,-742.75,0.0002204,2]
[370024587,1751838652836,-662.95,0.0002204,2]
[370024588,1751838652847,-530.35,0.0002204,2]
[370024589,1751838652856,-858.64,0.0002204,2]
[370024590,1751838652866,-949.25,0.0002204,2]
[370024591,1751838652876,-771.88,0.0002204,2]
[370024592,1751838652886,-627.58,0.0002204,2]
[370024593,1751838652896,-688.49,0.0002204,2]
[370024594,1751838652906,-1428.84,0.00022041,2]
[370024595,1751838652916,-460.0,0.00022041,2]
[370024596,1751838652926,-460.0,0.00022041,2]
[370024597,1751838652935,-937.96,0.00022043,2]
[370024598,1751838652945,-734.02,0.00022043,2]
[370024599,1751838652955,-1899.82,0.00022043,2]
[370024600,1751838652964,-558.05,0.00022043,2]
[370024601,1751838652973,-230.0,0.00022062,2]
[370024602,1751838652984,-151.0,0.000221,6]
[370024603,1751838652994,-1534.86340814,0.00022112,2]
[370024604,1751838653420,-460.0,0.00016834,2]
[370024605,1751838653430,-460.0,0.00016834,2]
[370024606,1751838653440,-460.0,0.00016834,2]
[370024607,1751838653450,-50000.0,0.00016836,2]
[370024608,1751838653460,-500.0,0.00016837,2]
[370024609,1751838653469,-460.0,0.00017108,2]
[370024610,1751838653479,-460.0,0.00017108,2]
[370024611,1751838653490,-460.0,0.00017108,2]
[370024612,1751838653499,-460.0,0.00017382,2]
[370024613,1751838653509,-460.0,0.00017382,2]
[370024614,1751838653518,-460.0,0.00017656,2]
[370024615,1751838653528,-460.0,0.0001793,2]
[370024616,1751838653537,-460.0,0.00018204,2]
[370024617,1751838653547,-22683.72233151,0.00018287,2]
[370024618,1751838653556,-500.0,0.00018341,2]
[370024619,1751838653565,-500.0,0.00018341,2]
[370024620,1751838653575,-460.0,0.00018478,2]
[370024621,1751838653584,-339.07,0.00018752,2]
[370024622,1751838653593,-14753.06304403,0.00018835,2]
[370024623,1751838653610,-10246.93695597,0.00018835,2]
[370024624,1751838653619,-25000.0,0.00019383,2]
[370024625,1751838653628,-274.592,0.00019543,2]
[370024626,1751838653638,-151.0,0.00019831,2]
[370024627,1751838653647,-579.67,0.00019849,2]
[370024628,1751838653656,-460.0,0.00020123,2]